[Event "FIDE WCCC U10 2018"]
[Site "Santiago de Compostela"]
[Date "2018.11.08"]
[Round "4"]
[White "Dang, Anh Minh"]
[Black "Volkov, Maksim"]
[Result "0-1"]
[ECO "D31"]
[WhiteElo "1817"]
[BlackElo "1971"]
[Annotator "NA RC"]
[PlyCount "142"]
[EventDate "2018.11.04"]
[EventType "swiss"]
[EventCountry "ESP"]
[SourceTitle "playchess.com"]
[Source "ChessBase"]
[SourceQuality "1"]
[TimeControl "40/5400+30:1800+30"]

{[%evp 18,139,36,22,37,22,32767,32767,32767,32767,32767,0,12,16,19,-55,-50,-51,0,0,32767,-28,57,69,85,-13,0,-32,-8,-9,-15,-43,-66,-133,0,-43,-103,-246,32767,-339,-439,-388,-583,-657,-725,-997,-693,-623,32767,-669,-790,-657,32767,32767,-673,32767,-792,-719,32767,32767,-1084,-1061,-1129,-1225,-1370,-2058,-1760,-1963,32767,32767,32767,32767,32767,32767,32767,32767,32767,32767,32767,32767,32767,32767,32767,32767,32767,32767,32767,32767,32767,32767,32767,32767,32767,32767,-4695,-1845,-1045,32767,32767,32767,32767,-1650,-12843,-2206,-12844,-1931,32767,32767,32767,32767,32767,32767,32767,-6621,-4627,-29973,-29981,-29951,-12847,-29978,-29984,-29984,-29985,-29986]} 1. d4 {[%emt 0:00:00]} d5 {[%emt 0:00:00]} 2. c4 {[%emt 0:00:00]} e6 {[%emt 0:00:00]} 3. Nf3 {[%emt 0:00:00]} c6 {[%emt 0:00:05]} 4. Nc3 {[%emt 0:00:06]} dxc4 {[%emt 0:01:08]} 5. a4 {[%emt 0:01:25]} Bb4 {[%emt 0:00:30]} 6. e3 {[%emt 0:01:07]} b5 {[%emt 0:00:40]} 7. Bd2 {[%emt 0:00:36]} a5 {[%emt 0:00:36]} 8. axb5 {[%emt 0:01:47]} Bxc3 {[%emt 0:00:09]} 9. Bxc3 {[%emt 0:00:32]} cxb5 {[%emt 0:00:15]} 10. b3 $1 {[%emt 0:00:45]} Bb7 {[%emt 0:00:25]} 11. bxc4 {[%emt 0:00:34]} b4 {[%emt 0:00:12]} 12. Bb2 {[%emt 0:00:07]} Nf6 {[%emt 0:00:27]} 13. Bd3 {[%emt 0:00:22]} Nbd7 {[%emt 0:00:24]} 14. O-O {[%emt 0:00:39]} O-O {[%emt 0:00:26]} 15. Nd2 {[%emt 0:04:47]} Qc7 {[%emt 0:03:01]} 16. e4 {[%emt 0:09:06] D31: Queen's Gambit Declined: Semi-Slav without ...Nf6 (+ Marshall Gambit and Noteboom) and Exchange Variation lines without ...Nf6} ({Günstiger ist} 16. Bc2 $11) (16. f4 a4 17. Rb1 Rfd8 18. Qe2 b3 19. Ba1 Nf8 20. e4 N6d7 21. Kh1 Re8 22. Qg4 Ng6 23. Qg3 Rad8 {½-½ (47) Andreikin,D (2737)-Tomashevsky,E (2716) Tbilisi 2015 CBM 165 [Krasenkow,M]}) 16... e5 {[%emt 0:02:24] LiveBook: 4 Games} 17. d5 $1 {[%emt 0:04:54]} Rfe8 $146 {[%emt 0:04:38]} ({Predecessor:} 17... Nc5 $15 18. Bc2 Nfd7 (18... Bc8 19. f4 Ng4 20. Qf3 exf4 21. e5 Nxe5 22. Qxf4 f6 23. Bxe5 Qxe5 24. Qxe5 fxe5 25. Bxh7+ Kxh7 26. Rxf8 {1-0 (36) Thorarinsson,P (2248)-Mouhamad,J (2290) Paris 2017})) 18. Bc2 {[%emt 0:04:05]} Nb6 {[%emt 0:08:13]} 19. Bb3 {[%emt 0:06:35]} Bc8 {[%emt 0:07:26]} (19... Nfd7 $11) 20. f4 {[%emt 0:21:19]} Ng4 {[%emt 0:05:39] [#]} 21. fxe5 {[%emt 0:10:51]} ({White has to play} 21. Qf3 $1 $16) 21... Qc5+ {[%emt 0:01:29]} (21... Ne3 $15 22. Qh5 Nxf1 23. Rxf1 Ba6) 22. Kh1 {[%emt 0:00:09]} Nf2+ {[%emt 0:00:13]} 23. Rxf2 $1 {[%emt 0:00:05]} Qxf2 {[%emt 0:00:05]} 24. c5 {[%emt 0:08:22]} (24. e6 $5 fxe6 25. Qh5 $11) 24... Qxc5 {[%emt 0:07:10]} 25. Nf3 {[%emt 0:01:17] [#]} (25. Rc1 $15 Qf2 26. e6) 25... Bg4 $2 {[%emt 0:01:34]} (25... a4 $1 $17 {[%cal Ra4b3]} 26. Bd4 (26. Bxa4 Nxa4) 26... Qb5 27. Bxb6 Qxb6 28. Bxa4 Qa7) 26. Bd4 {[%emt 0:05:26] [#]} (26. Rc1 $5 {[%cal Rc1c5]} Bxf3 27. Qxf3 $17) 26... Qb5 $1 {[%emt 0:03:47]} 27. d6 $2 {[%emt 0:00:24]} (27. Bc2 $15 a4 28. Bd3) 27... Be6 {[%emt 0:09:56]} 28. Bxe6 $2 {[%emt 0:00:35]} (28. Ng5 $17 {was the only chance.} Bxb3 29. Qxb3) 28... fxe6 {[%emt 0:01:35]} ({Inferior is} 28... Rxe6 29. Bxb6 Qxb6 30. Qd5 $11) 29. Bxb6 {[%emt 0:08:24]} Qxb6 {[%emt 0:00:07]} 30. Ng5 {[%emt 0:01:46]} h6 {[%emt 0:02:40]} 31. Nh3 {[%emt 0:01:37]} Rf8 {[%emt 0:09:16]} 32. Qg4 {[%emt 0:00:13]} Rae8 {[%emt 0:00:28]} 33. Rd1 {[%emt 0:03:46]} Rf7 {[%emt 0:10:51]} 34. Nf4 {[%emt 0:02:16]} Qb5 {[%emt 0:02:29]} 35. h3 {[%emt 0:01:25]} Qxe5 {[%emt 0:01:08]} 36. Ng6 {[%emt 0:00:15]} Qb5 {[%emt 0:07:00]} 37. Kh2 {[%emt 0:01:17]} b3 {[%emt 0:01:08]} 38. Ne7+ {[%emt 0:00:45]} Rexe7 {[%emt 0:00:43]} 39. dxe7 {[%emt 0:00:06]} Rxe7 {[%emt 0:00:04]} 40. Rd8+ {[%emt 0:00:00]} Kh7 {[%emt 0:00:00]} 41. h4 {[%emt 0:03:37]} b2 {[%emt 0:04:24]} 42. h5 {[%emt 0:00:09]} Qe5+ {[%emt 0:00:07]} 43. Kh3 {[%emt 0:00:40]} Qf6 {[%emt 0:00:47]} 44. e5 {[%emt 0:00:27]} Qf5 {[%emt 0:00:12]} 45. Qxf5+ {[%emt 0:00:19]} exf5 {[%emt 0:00:08]} 46. Rb8 {[%emt 0:00:05]} Rxe5 {[%emt 0:00:06]} 47. Rxb2 {[%emt 0:00:06]} a4 {[%emt 0:00:17]} 48. Ra2 {[%emt 0:00:35]} Re4 {[%emt 0:00:24]} 49. Kg3 {[%emt 0:00:28]} Kg8 {[%emt 0:00:08]} 50. Kf3 {[%emt 0:00:12]} Kf7 {[%emt 0:00:10]} 51. Rb2 {[%emt 0:00:27]} Kf6 {[%emt 0:01:35]} 52. Rb5 {[%emt 0:00:16]} Re5 {[%emt 0:00:32]} 53. Rb6+ {[%emt 0:00:16]} Re6 {[%emt 0:00:05]} 54. Rb5 {[%emt 0:00:44]} Ra6 {[%emt 0:00:16]} 55. Kf4 {[%emt 0:00:13]} g5+ {[%emt 0:00:37]} 56. hxg6 {[%emt 0:00:05]} Kxg6 {[%emt 0:00:04]} 57. Rb2 {[%emt 0:00:44]} a3 {[%emt 0:00:06]} 58. Ra2 {[%emt 0:00:03]} Ra4+ {[%emt 0:00:08]} 59. Ke5 {[%emt 0:00:06]} Kg5 {[%emt 0:00:08]} 60. Kd5 {[%emt 0:00:08]} Kg4 {[%emt 0:00:22]} 61. Kc5 {[%emt 0:00:12]} f4 {[%emt 0:00:58]} 62. Kb5 {[%emt 0:00:08]} Ra8 {[%emt 0:00:06]} 63. Kc4 {[%emt 0:00:08]} h5 {[%emt 0:00:06]} 64. Kd3 {[%emt 0:00:05]} h4 {[%emt 0:00:07]} 65. Ke4 {[%emt 0:00:08]} Ra4+ {[%emt 0:00:05]} 66. Kd3 {[%emt 0:00:04]} Kg3 {[%emt 0:00:38]} 67. Kc3 {[%emt 0:00:13]} h3 {[%emt 0:00:06]} 68. gxh3 {[%emt 0:00:04]} Kxh3 {[%emt 0:00:04]} 69. Kd2 {[%emt 0:00:09]} f3 {[%emt 0:00:16]} 70. Ke1 {[%emt 0:00:05]} Kg3 {[%emt 0:00:05]} 71. Kf1 {[%emt 0:00:29]} Rb4 0-1

[Event "FIDE WCCC U10 2018"]
[Site "Santiago de Compostela"]
[Date "2018.11.08"]
[Round "4"]
[White "Wilson, Ronen"]
[Black "Mardov, Dimitar"]
[Result "0-1"]
[ECO "B47"]
[WhiteElo "1761"]
[BlackElo "1985"]
[Annotator "NA RC"]
[PlyCount "131"]
[EventDate "2018.11.04"]
[EventType "swiss"]
[EventCountry "ESP"]
[SourceTitle "playchess.com"]
[Source "ChessBase"]
[SourceQuality "1"]
[TimeControl "40/5400+30:1800+30"]

{[%evp 8,130,20,32767,32767,29,32767,32767,32767,36,48,18,48,17,20,6,32767,0,32767,-2,16,0,36,1,2,0,0,-12,-18,-31,-10,-18,-22,-44,-31,-77,32767,-52,-47,32767,-57,-149,-133,-205,-218,-255,-119,32767,32767,-100,32767,-203,32767,-205,-143,-144,-121,-136,-112,32767,32767,32767,-156,32767,32767,32767,-173,-190,32767,-189,-198,-194,-191,-185,-169,-166,-156,-168,-135,-131,-6,-750,-839,-899,-247,-789,-875,-738,-316,-304,-312,-322,-312,-333,32767,32767,32767,32767,32767,32767,32767,32767,-459,-520,-512,-695,32767,32767,32767,-1486,-459,-578,-856,-1199,-1960,-4766,-980,-4794,-1725,-5014,-5734,-29980,-29951,-29982,-29983]} 1. e4 {[%emt 0:00:00]} c5 {[%emt 0:00:00]} 2. Nf3 {[%emt 0:00:00]} e6 {[%emt 0:00:00]} 3. d4 {[%emt 0:00:00]} cxd4 {[%emt 0:00:00]} 4. Nxd4 {[%emt 0:00:11]} Nc6 {[%emt 0:00:00]} 5. Nc3 {[%emt 0:00:41]} Qc7 {[%emt 0:00:33]} 6. g3 {[%emt 0:04:58]} a6 {[%emt 0:00:13]} 7. Bg2 {[%emt 0:00:32]} d6 {[%emt 0:00:43]} 8. O-O {[%emt 0:04:24]} Bd7 {[%emt 0:00:12] LiveBook: 796 Games} 9. Re1 {[%emt 0:02:10]} Be7 {[%emt 0:01:59] B47: Sicilian: Taimanov: 5 Nc3 Qc7 6 f4, 6 g3 and 6 Be2} 10. Be3 {[%emt 0:02:11]} (10. Nxc6 Bxc6 11. a4 Nf6 12. a5 {½-½ (12) Delgado Ramirez,N (2615)-Leitao,R (2618) Teresina 2018}) 10... Nf6 {[%emt 0:03:37]} 11. f4 {[%emt 0:08:06]} Na5 $146 {[%emt 0:05:53]} ({Predecessor:} 11... Rc8 12. Nb3 b5 13. a3 b4 14. axb4 Nxb4 15. Kh1 O-O 16. g4 d5 17. exd5 {0-1 (38) Peng,S (2193)-Kavutskiy,K (2369) Las Vegas 2017}) 12. Bf1 {[%emt 0:05:52]} Nc4 {[%emt 0:03:02]} 13. Bxc4 {[%emt 0:02:45]} Qxc4 {[%emt 0:00:38]} 14. Qf3 {[%emt 0:11:24]} Bc6 {[%emt 0:16:56]} 15. Nxc6 {[%emt 0:01:43]} Qxc6 {[%emt 0:02:11]} 16. Bd4 {[%emt 0:04:55]} O-O {[%emt 0:01:27]} 17. Qg2 {[%emt 0:03:46]} Nd7 {[%emt 0:08:00]} 18. Rad1 {[%emt 0:02:42]} Rac8 {[%emt 0:02:37]} 19. Rd2 {[%emt 0:05:10]} Rfe8 {[%emt 0:05:34]} 20. Red1 {[%emt 0:08:02]} Nb6 {[%emt 0:01:58]} 21. Rd3 {[%emt 0:13:51]} (21. Rf2 $11) 21... Nc4 {[%emt 0:02:18]} 22. Rb1 {[%emt 0:00:31]} b5 {[%emt 0:01:02]} 23. Nd1 {[%emt 0:03:21]} Bf8 {[%emt 0:05:04]} 24. c3 {[%emt 0:01:29]} ({Günstiger ist} 24. Bf2 $15) 24... e5 {[%emt 0:03:29]} 25. fxe5 {[%emt 0:00:55]} (25. Bf2 $17 {keeps fighting.}) 25... dxe5 {[%emt 0:00:36]} ({Nicht} 25... Nxe5 26. Rd2 $15) 26. Bf2 {[%emt 0:06:20]} Nd6 {[%emt 0:07:46]} (26... Red8 $19 27. Rd5 Nd2) 27. Re3 {[%emt 0:01:10]} Be7 {[%emt 0:00:44]} 28. Re2 {[%emt 0:01:06]} Qc4 {[%emt 0:01:07]} 29. Be1 {[%emt 0:01:02]} (29. Re1 $17) 29... Qxa2 {[%emt 0:02:27]} 30. Rc1 {[%emt 0:00:14]} Qe6 {[%emt 0:01:19]} 31. Ra1 {[%emt 0:00:48]} Nb7 {[%emt 0:00:58]} 32. Bf2 {[%emt 0:00:34]} Nc5 {[%emt 0:05:00]} 33. b4 {[%emt 0:02:06]} Na4 {[%emt 0:01:06]} 34. Be1 {[%emt 0:00:43]} Bd8 {[%emt 0:03:03]} 35. Kh1 {[%emt 0:00:51]} Bb6 {[%emt 0:01:11]} 36. Qf3 {[%emt 0:01:42]} Rc6 {[%emt 0:02:38]} 37. Bf2 {[%emt 0:00:56]} Bxf2 {[%emt 0:02:45]} 38. Rxf2 {[%emt 0:00:09]} Rec8 {[%emt 0:00:27]} 39. Rc1 {[%emt 0:00:56]} Rd8 {[%emt 0:02:05]} 40. Rfc2 {[%emt 0:00:00]} Rcd6 {[%emt 0:00:00]} 41. Ne3 {[%emt 0:08:16]} Nb6 {[%emt 0:07:29]} 42. Ra1 {[%emt 0:07:17]} Rd3 {[%emt 0:04:43]} 43. Rxa6 {[%emt 0:12:54] [#]} Qb3 {[%emt 0:01:38]} (43... h6 $1 $17 44. Rc1 Qc6) 44. Re2 $2 {[%emt 0:03:51]} ({Don't go for} 44. Rxb6 $2 {[#]} Qxc2 $3 {[%mdl 512]} 45. Nxc2 Rxf3 $19) (44. Rf2 $11 Rxc3 45. Rxb6 Rxe3 46. Qf5) 44... Nc4 {[%emt 0:01:31]} 45. Ra7 {[%emt 0:01:08]} Rf8 $2 {[%emt 0:02:14]} (45... Nxe3 46. Rxe3 Rxe3 47. Qxe3 Qd1+ 48. Kg2 Rd2+ 49. Qxd2 Qxd2+ 50. Kh3 Qh6+ 51. Kg2 Qc6) 46. Ra1 $2 {[%emt 0:00:38]} (46. Qf2 Nxe3 47. Rxe3 Qxc3 48. Rxd3 Qxd3 49. Qe1) 46... Qxc3 {[%emt 0:00:50]} 47. Rae1 {[%emt 0:00:10]} Qxb4 $2 {[%emt 0:01:11]} (47... Nxe3 48. Qf2 Nc4) 48. Qf2 {[%emt 0:00:22]} Nxe3 {[%emt 0:00:37]} 49. Rxe3 {[%emt 0:00:07]} Rd4 {[%emt 0:00:52]} 50. Qf5 {[%emt 0:00:42]} Qd6 {[%emt 0:00:25]} 51. Qf3 {[%emt 0:00:29]} b4 {[%emt 0:00:26]} 52. h4 {[%emt 0:00:39]} Qe6 {[%emt 0:00:48]} 53. R3e2 {[%emt 0:00:35]} Rfd8 {[%emt 0:00:28]} 54. Qg2 {[%emt 0:01:02]} Rd3 {[%emt 0:01:19]} 55. Rb2 {[%emt 0:00:28]} b3 {[%emt 0:00:53]} 56. Ree2 {[%emt 0:00:29]} Qc4 {[%emt 0:00:45]} 57. Kh2 {[%emt 0:00:22]} h6 {[%emt 0:00:19]} 58. Qf1 {[%emt 0:00:34] [#]} Qc3 {[%emt 0:04:28]} (58... Rd2 $142 $1 {[%mdl 512]} 59. Qe1 (59. Rbxd2 Rxd2) 59... Rc2) 59. Qg2 {[%emt 0:00:27]} R8d6 {[%emt 0:01:07]} 60. h5 {[%emt 0:00:35]} Rf3 {[%emt 0:02:44]} 61. Rf2 {[%emt 0:00:37]} Re3 {[%emt 0:01:37]} 62. Rfe2 {[%emt 0:00:22]} Rxe2 {[%emt 0:01:30]} 63. Rxe2 {[%emt 0:00:34]} Rd1 {[%emt 0:00:52]} 64. Kh3 {[%emt 0:00:30]} Rc1 {[%emt 0:01:59]} 65. Rd2 {[%emt 0:00:23]} Qc8+ {[%emt 0:00:20]} 66. Kh4 0-1

[Event "FIDE WCCC U10 2018"]
[Site "Santiago de Compostela"]
[Date "2018.11.08"]
[Round "4"]
[White "Matsumura, Cocoro"]
[Black "Zhao, Erick"]
[Result "0-1"]
[ECO "B43"]
[WhiteElo "1699"]
[BlackElo "1957"]
[Annotator "NA RC"]
[PlyCount "112"]
[EventDate "2018.11.04"]
[EventType "swiss"]
[EventCountry "ESP"]
[SourceTitle "playchess.com"]
[Source "ChessBase"]
[SourceQuality "1"]
[TimeControl "40/5400+30:1800+30"]

{[%evp 8,102,43,32767,32767,32767,32767,32767,32767,32767,-5,32767,0,-16,32767,-15,32767,-19,-4,-38,-27,-16,-15,-19,-17,-42,-11,-16,0,8,0,-5,35,32767,32767,26,32767,28,32767,23,136,60,199,32,68,37,98,83,179,0,0,32767,149,170,32767,32767,32767,32767,32767,32767,32767,32767,82,-30,32767,32767,32767,32767,127,0,0,32767,143,122,164,8,0,32767,10,-76,32767,43,126,-101,-139,-234,-237,-238,32767,32767,32767,32767,32767,32767,32767,-1002,-1095]} 1. e4 {[%emt 0:00:00]} c5 {[%emt 0:00:00]} 2. Nf3 {[%emt 0:00:00]} e6 {[%emt 0:00:00]} 3. d4 {[%emt 0:00:00]} cxd4 {[%emt 0:00:17]} 4. Nxd4 {[%emt 0:00:00]} a6 {[%emt 0:00:13]} 5. Nc3 {[%emt 0:00:03]} Qc7 {[%emt 0:02:09]} 6. Bd3 {[%emt 0:00:26]} Nf6 {[%emt 0:00:36]} 7. O-O {[%emt 0:00:13]} Nc6 {[%emt 0:00:50]} 8. Nf3 {[%emt 0:01:30]} Be7 {[%emt 0:05:34] B43: Sicilian: Kan Variation: 5 Nc3} 9. Re1 {[%emt 0:05:01]} d6 {[%emt 0:00:18]} 10. Qe2 {[%emt 0:13:58]} (10. h3 O-O 11. Bf4 Ne5 12. Rc1 Nfd7 13. Qe2 b6 14. Nd1 Bb7 15. c4 Nxd3 16. Qxd3 {0-1 (27) Bitoon,J (2290)-Wang,C (2485) Pattaya 2013}) 10... O-O {[%emt 0:01:58]} 11. Bf4 {[%emt 0:07:49]} b5 $146 {[%emt 0:05:04]} ({Predecessor:} 11... e5 12. Bg5 Bg4 13. Bxf6 Bxf6 14. Nd5 Qd8 15. c3 Be6 16. Rad1 Bxd5 17. exd5 {1-0 (62) Pintor,S (2024)-Duarte,D (1917) Guimaraes 2017}) 12. a4 {[%emt 0:25:03]} b4 {[%emt 0:02:32]} 13. Na2 {[%emt 0:00:18]} a5 {[%emt 0:02:03]} 14. c3 {[%emt 0:07:18]} Bb7 {[%emt 0:06:59]} 15. cxb4 {[%emt 0:09:44]} axb4 {[%emt 0:00:27]} 16. b3 {[%emt 0:01:30]} Qa5 {[%emt 0:01:52]} 17. Bd2 {[%emt 0:04:50]} Nd7 {[%emt 0:02:33]} 18. Bb5 {[%emt 0:00:35]} Nde5 {[%emt 0:06:50]} 19. Red1 {[%emt 0:07:12]} Rab8 {[%emt 0:09:03]} 20. Be1 {[%emt 0:02:46]} Rfd8 {[%emt 0:01:43]} 21. Rac1 {[%emt 0:00:39]} Nxf3+ {[%emt 0:06:11]} 22. Qxf3 {[%emt 0:00:33]} Qa8 {[%emt 0:00:49]} 23. Qg3 {[%emt 0:07:46]} Na5 {[%emt 0:04:34]} (23... Ne5 $11) 24. Nxb4 {[%emt 0:00:41]} ({Better is} 24. Rc7 $16 Bf6 25. Qe3 (25. Bxb4 Bxe4 26. Nc3 Bb7 $16) (25. Rxd6 Bxe4 26. Bxb4 Rxd6 $11) (25. Nxb4 Rbc8 $16)) 24... Bxe4 {[%emt 0:00:42]} (24... Rbc8 $14) 25. Bc3 {[%emt 0:00:21]} (25. Na6 $18 Nxb3 26. Rc7 (26. Qxb3 Qxa6 27. Qxe6 fxe6 $11)) 25... Bg6 {[%emt 0:00:27]} 26. Bb2 {[%emt 0:00:20]} Rdc8 {[%emt 0:05:12]} (26... Qe4 $11) 27. h4 {[%emt 0:01:23]} h5 {[%emt 0:01:47]} (27... Bf8 $14) 28. Na2 {[%emt 0:02:44]} (28. Na6 $16 Rxc1 29. Rxc1) 28... Rxc1 {[%emt 0:09:20]} 29. Rxc1 {[%emt 0:00:01]} e5 $2 {[%emt 0:04:22]} (29... Qd5 $1 $11) 30. b4 {[%emt 0:00:45]} Nb7 {[%emt 0:00:38]} 31. Qc3 {[%emt 0:00:12]} Nd8 {[%emt 0:03:08]} 32. Qc4 {[%emt 0:01:13]} Ne6 {[%emt 0:00:33]} 33. Bc6 {[%emt 0:00:10]} Qa7 {[%emt 0:00:16]} 34. g3 {[%emt 0:00:44]} Rc8 {[%emt 0:05:04]} (34... Nc5 $11) 35. b5 {[%emt 0:00:15]} (35. Qe2 $14) 35... Nc5 {[%emt 0:00:08]} 36. Nc3 {[%emt 0:00:09]} Nd3 {[%emt 0:02:01]} 37. Rc2 {[%emt 0:00:00]} Ne1 $1 $11 {[%emt 0:00:48] [#]} 38. Rc1 {[%emt 0:00:58]} ({And not} 38. Re2 Bd3 $11) (38. Nd5 $1 $16 Nf3+ (38... Bxc2) 39. Kh1 Bxc2 40. b6) 38... Nd3 {[%emt 0:00:37]} 39. Rc2 {[%emt 0:00:04]} Nc5 {[%emt 0:08:54]} 40. Rd2 {[%emt 0:00:00]} Bf8 {[%emt 0:00:00] [#]} 41. Ba3 $2 {[%emt 0:04:25]} ({Better is} 41. Bd5 $1 $18) 41... Ne6 $1 {[%emt 0:03:15]} 42. Ne2 {[%emt 0:15:48]} d5 $1 {[%emt 0:04:30]} 43. Qb3 {[%emt 0:02:13]} (43. Qa2 $1 $11 {remains equal.}) 43... Bxa3 {[%emt 0:02:04]} 44. Qxa3 {[%emt 0:00:13]} Qa5 {[%emt 0:00:16]} (44... d4 $14) 45. Qa2 $2 {[%emt 0:02:54]} (45. Qc3 $16 {ist nötig, um Vorteil zu sichern.} Qxc3 46. Nxc3) 45... d4 {[%emt 0:01:05]} 46. Bd5 {[%emt 0:09:03]} (46. Rd1 $17) 46... Nc5 {[%emt 0:03:02]} 47. Rd1 {[%emt 0:00:41]} d3 {[%emt 0:00:43]} 48. Nc1 {[%emt 0:00:10]} Qxa4 {[%emt 0:00:37]} 49. Qxa4 {[%emt 0:00:12]} Nxa4 {[%emt 0:00:01]} 50. Nb3 {[%emt 0:01:36]} Nc3 {[%emt 0:00:13]} 51. b6 Nxd1 $19 {[%emt 0:01:02]} 52. b7 {[%emt 0:00:13]} Rb8 {[%emt 0:00:09]} 53. Nc5 {[%emt 0:00:08]} Nc3 {[%emt 0:00:28]} 54. Nd7 {[%emt 0:00:21]} Rxb7 {[%emt 0:00:21]} 55. Bxb7 {[%emt 0:00:02]} e4 {[%emt 0:00:16]} 56. f3 {[%emt 0:01:56]} d2 {[%emt 0:00:07]} 0-1

[Event "FIDE WCCC U10 2018"]
[Site "Santiago de Compostela"]
[Date "2018.11.08"]
[Round "4"]
[White "Silva, Daniel Frederico V"]
[Black "Uritsky, Yonathan"]
[Result "0-1"]
[ECO "B30"]
[WhiteElo "1693"]
[BlackElo "1902"]
[Annotator "NA"]
[PlyCount "82"]
[EventDate "2018.11.04"]
[EventType "swiss"]
[EventCountry "ESP"]
[SourceTitle "playchess.com"]
[Source "ChessBase"]
[SourceQuality "1"]
[TimeControl "40/5400+30:1800+30"]

{[%evp 8,80,6,3,12,7,12,0,1,0,27,-25,0,-21,32767,32767,-42,-50,-47,-103,-103,-104,-75,-83,-99,-91,-87,-104,-91,-85,-53,-87,-73,-103,32767,-108,0,-108,-25,-166,-159,-189,-195,32767,-239,-264,-131,32767,-138,32767,32767,-291,-139,-159,32767,0,0,32767,-54,32767,-344,-313,-470,32767,32767,32767,32767,32767,-1139,32767,32767,-1547,-1756,-29997,-29998]} 1. e4 {[%emt 0:00:00]} c5 {[%emt 0:00:00]} 2. Nf3 {[%emt 0:00:14]} Nc6 {[%emt 0:00:20]} 3. Bb5 {[%emt 0:00:31]} Nf6 {[%emt 0:00:41]} 4. d3 {[%emt 0:10:25]} Qa5+ {[%emt 0:00:29] B30: Sizilianisch (Rossolimo-Variante)} 5. Nc3 {[%emt 0:00:11]} Nd4 {[%emt 0:00:42]} 6. Ba4 {[%emt 0:00:29]} (6. Bc4 b5 7. Bd5 Rb8 8. O-O e6 9. Bf4 d6 10. Nxd4 cxd4 11. Bc6+ Nd7 12. Ne2 Qb6 13. Bxd7+ Bxd7 14. e5 Rc8 15. Re1 Be7 16. Qd2 O-O 17. Qb4 Rxc2 18. Qxd4 Rxe2 {0-1 (18) Motylev,A (2663)-Zhigalko,S (2671) Tallinn 2016}) 6... b5 {[%emt 0:01:07]} 7. Bb3 $1 {[%emt 0:00:11]} Nxb3 {[%emt 0:05:38] LiveBook: 14 Games} 8. cxb3 {[%emt 0:00:48]} d6 {[%emt 0:02:00]} 9. h3 {[%emt 0:03:10]} g6 $146 {[%emt 0:01:24]} ({Vorgänger:} 9... e6 10. O-O Be7 11. Bg5 O-O 12. a4 {0-1 (56) Lioe,D (2372)-Pascua,H (2462) Penang 2015}) 10. O-O {[%emt 0:02:23]} Bg7 {[%emt 0:00:18]} 11. Bd2 {[%emt 0:09:28]} b4 {[%emt 0:01:19]} 12. Ne2 {[%emt 0:02:06]} Qb5 {[%emt 0:01:44]} 13. Ne1 {[%emt 0:10:03]} (13. e5 $15 dxe5 14. Nxe5) 13... O-O {[%emt 0:01:47]} 14. Bg5 {[%emt 0:03:11]} h6 {[%emt 0:02:43]} 15. Bxf6 {[%emt 0:01:34]} Bxf6 {[%emt 0:00:10]} 16. Qd2 {[%emt 0:01:52]} Kh7 {[%emt 0:01:57]} 17. f4 {[%emt 0:03:54]} e6 {[%emt 0:03:19]} 18. Nf3 {[%emt 0:05:35]} d5 {[%emt 0:01:34]} 19. e5 {[%emt 0:05:50]} Be7 {[%emt 0:00:15]} 20. Rfd1 {[%emt 0:04:21]} Bb7 {[%emt 0:01:27]} 21. Kh1 {[%emt 0:01:56]} (21. d4 $15) 21... f6 {[%emt 0:04:06]} (21... Rfc8 $17) 22. Rf1 {[%emt 0:06:11]} (22. exf6 $11 Rxf6 23. d4) 22... d4 {[%emt 0:12:59]} (22... f5 $17) 23. Neg1 $2 {[%emt 0:03:55]} (23. exf6 $1 $11 {and White has nothing to worry.} Bd6 24. Ne5) 23... f5 {[%emt 0:01:15]} 24. Qe2 {[%emt 0:03:24]} g5 {[%emt 0:01:19]} 25. fxg5 {[%emt 0:00:15]} hxg5 {[%emt 0:00:39]} 26. Nd2 {[%emt 0:01:22]} Kg6 {[%emt 0:02:16]} ({Black should play} 26... Qe8 $19 27. Nc4 {[#]} g4 $1 {[%mdl 512]}) 27. Nc4 {[%emt 0:00:46] [#]} Rh8 {[%emt 0:05:05]} ({Lieber} 27... g4 $1 $19 {[%mdl 512]} 28. Nd6 (28. hxg4 Rh8+) 28... Bxd6 29. exd6 Qc6 30. Qxe6+ Rf6) 28. Kh2 {[%emt 0:00:46]} Qd7 {[%emt 0:02:47]} 29. g4 {[%emt 0:04:01]} fxg4 {[%emt 0:10:49]} (29... Raf8 $19 {is more deadly.} 30. Kg3 Qd5) 30. Qxg4 {[%emt 0:00:25]} Rh4 {[%emt 0:00:21]} 31. Qg3 $1 {[%emt 0:03:53]} Rah8 {[%emt 0:02:05]} 32. Nd6 {[%emt 0:11:32] [#]} Bd5 {[%emt 0:04:48]} ({Besser ist} 32... g4 $1 $19 33. Nxb7 Qxb7) 33. Nf7 {[%emt 0:00:24]} R8h7 {[%emt 0:01:38]} 34. Nd6 {[%emt 0:00:49]} g4 {[%emt 0:02:44]} 35. Rf2 {[%emt 0:01:02]} Bxd6 {[%emt 0:01:58]} 36. Rf6+ {[%emt 0:00:28]} Kg7 {[%emt 0:01:25]} 37. Qf4 {[%emt 0:00:22]} Qe7 {[%emt 0:08:58]} 38. Qg5+ {[%emt 0:00:34]} Kh8 {[%emt 0:00:29]} 39. Raf1 {[%emt 0:00:21]} Qg7 {[%emt 0:04:11]} 40. Rg6 {[%emt 0:00:00]} Qxe5+ {[%emt 0:00:00]} 41. Qxe5+ {[%emt 0:01:01]} Bxe5+ {[%emt 0:00:36]} 0-1